bitfinex/quotes_BTCUSD_20250406
["timestamp","ask_amount","ask_price","bid_price","bid_amount"]
[1743954386253,7e-07,82570.0,82569.0,2.01965374]
[1743954387514,7e-07,82570.0,82569.0,2.35965374]
[1743954387738,4e-07,82572.0,82571.0,0.29952123]
[1743954387938,1e-07,82580.0,82579.0,0.00411938]
[1743954388159,7e-07,82590.0,82589.0,0.01622738]
[1743954388429,0.00013725,82590.0,82589.0,0.5548252]
[1743954397853,0.00013725,82590.0,82589.0,0.5551564]
[1743954401609,0.00013725,82590.0,82589.0,1.6006364]
[1743954409705,0.00013725,82590.0,82589.0,1.35445555]
[1743954410036,0.00013725,82590.0,82589.0,1.32226155]
[1743954420847,0.00013725,82590.0,82589.0,1.31015355]
[1743954421383,0.00013725,82590.0,82589.0,1.32226155]
[1743954422485,0.00013725,82590.0,82589.0,1.18494155]
[1743954422692,0.00013725,82590.0,82589.0,1.32226155]
[1743954426861,0.00013725,82590.0,82589.0,1.36001625]
[1743954427019,0.00013725,82590.0,82589.0,1.3745571]
[1743954427220,0.00013725,82590.0,82589.0,1.3368024]
[1743954427869,0.00013725,82590.0,82589.0,1.37455652]
[1743954435365,0.00013725,82590.0,82589.0,1.22269567]
[1743954435583,0.00013725,82590.0,82589.0,1.35997567]
[1743954435817,0.00013725,82590.0,82589.0,1.22269567]
[1743954436287,0.00013725,82590.0,82589.0,1.18494155]
[1743954436508,0.00013725,82590.0,82589.0,1.32222155]
[1743954437437,0.00013725,82590.0,82589.0,1.36912155]
[1743954440708,0.00013725,82590.0,82589.0,1.31810217]
[1743954440994,0.00013725,82590.0,82589.0,1.18494155]
[1743954441184,0.00013725,82590.0,82589.0,1.17283355]
[1743954441385,0.01224525,82590.0,82589.0,1.31011355]
[1743954441666,0.01224525,82590.0,82589.0,1.17283355]
[1743954441667,0.02239822,82590.0,82589.0,1.17283355]
[1743954441867,0.06789822,82590.0,82589.0,1.1830912]
[1743954444694,0.01029022,82590.0,82589.0,1.1830912]
[1743954445026,0.01029022,82590.0,82589.0,1.31011355]
[1743954445225,0.01029022,82590.0,82589.0,1.32222155]
[1743954445406,0.00013725,82590.0,82589.0,1.32222155]
[1743954449872,0.00013725,82590.0,82589.0,1.31011355]
[1743954450205,0.01024206,82590.0,82589.0,1.31011355]
[1743954450648,0.00013725,82590.0,82589.0,1.31011355]
[1743954450852,0.00013725,82590.0,82589.0,1.32222155]
[1743954457250,0.00013725,82590.0,82589.0,1.18494155]
[1743954457456,0.00013725,82590.0,82589.0,1.32222155]
[1743954457660,0.01022238,82590.0,82589.0,1.32222155]
[1743954457853,0.00013725,82590.0,82589.0,1.31011355]
[1743954457993,0.01224525,82590.0,82589.0,1.16871417]
[1743954458196,0.05774525,82590.0,82589.0,1.31011355]
[1743954458408,0.06783038,82590.0,82589.0,1.31011355]
[1743954458603,0.06783038,82590.0,82589.0,1.17283355]
[1743954458824,0.06783038,82590.0,82589.0,1.0458112]
[1743954458984,0.06783038,82590.0,82589.0,1.1830912]
[1743954461804,0.02233038,82590.0,82589.0,1.1830912]
[1743954466391,0.01022238,82590.0,82589.0,1.31011355]
[1743954467180,0.00013725,82590.0,82589.0,1.31011355]
[1743954467604,0.01022238,82590.0,82589.0,1.31011355]
[1743954467823,0.00013725,82590.0,82589.0,1.31011355]
[1743954468047,0.01022238,82590.0,82589.0,1.31011355]
[1743954468231,0.00013725,82590.0,82589.0,1.31011355]
[1743954468689,0.00013725,82590.0,82589.0,0.26463355]
[1743954469538,0.00013725,82590.0,82589.0,0.27674155]
[1743954474737,0.02013725,82590.0,82589.0,0.27674155]
[1743954474937,0.00013725,82590.0,82589.0,0.27674155]
[1743954487942,0.00013725,82590.0,82589.0,1.18510155]
[1743954488140,0.00013725,82590.0,82589.0,1.32234155]
[1743954490391,0.00013725,82590.0,82589.0,1.36774155]
[1743954490814,0.00013725,82590.0,82589.0,1.40552594]
[1743954492420,0.00013725,82590.0,82589.0,1.23050155]
[1743954492675,0.00013725,82590.0,82589.0,1.36774155]
[1743954492880,0.00013725,82590.0,82589.0,1.23050155]
[1743954493075,0.00013725,82590.0,82589.0,1.36774155]
[1743954493805,0.00013725,82590.0,82589.0,1.45310088]
[1743954498696,0.00013725,82590.0,82589.0,1.46764173]
[1743954502266,0.00013725,82590.0,82589.0,1.87724173]
[1743954508032,0.00013725,82590.0,82589.0,2.21724173]
[1743954508627,0.00013725,82590.0,82589.0,2.08000173]
[1743954508829,0.00013725,82590.0,82589.0,2.21720173]
[1743954516413,0.00013725,82590.0,82589.0,2.08000173]
[1743954516617,0.00013725,82590.0,82589.0,2.21716173]
[1743954529915,0.00013725,82590.0,82589.0,2.21553076]
[1743954530894,0.00013725,82590.0,82589.0,2.07837076]
[1743954531099,0.00013725,82590.0,82589.0,2.21553076]
[1743954531522,0.00013725,82590.0,82589.0,2.07837076]
[1743954531748,0.00013725,82590.0,82589.0,2.21553076]
[1743954534852,0.00013725,82590.0,82589.0,2.22053076]
[1743954534853,2.5e-07,82590.0,82589.0,2.22053076]
[1743954536236,2.5e-07,82590.0,82589.0,2.22086196]
[1743954536630,0.00016585,82590.0,82589.0,2.22086196]
[1743954541428,8.5e-07,82590.0,82589.0,2.22086196]
[1743954554026,4.5e-07,82593.0,82592.0,0.18573338]
[1743954554233,0.5,82608.0,82607.0,0.18570138]
[1743954554544,0.51024491,82608.0,82607.0,0.49802453]
[1743954554945,0.51024491,82608.0,82607.0,1.54326453]
[1743954555647,0.51024491,82608.0,82607.0,1.40614453]
[1743954555927,0.51024491,82608.0,82607.0,1.54326453]
[1743954556302,0.51024491,82608.0,82607.0,1.52872368]
[1743954559261,0.51024491,82608.0,82607.0,1.55033566]
[1743954561094,0.51024491,82608.0,82607.0,1.5379193]
[1743954562305,0.51024491,82608.0,82607.0,1.17733859]
[1743954562507,0.55954491,82608.0,82607.0,1.33064297]
[1743954563637,0.55971051,82608.0,82607.0,1.33064297]
[1743954564018,0.51041051,82608.0,82607.0,1.33064297]
[1743954564438,0.51041051,82608.0,82607.0,1.36840882]
[1743954575169,0.51041051,82608.0,82607.0,1.43104967]
[1743954576794,0.51041051,82608.0,82607.0,1.29396967]
[1743954576990,0.51041051,82608.0,82607.0,1.38294967]
[1743954579714,0.51041051,82608.0,82607.0,2.18344967]
[1743954579934,5.1e-07,82609.0,82608.0,0.59114023]
[1743954580288,5.1e-07,82609.0,82608.0,1.16140905]
[1743954582411,0.00011069,82609.0,82608.0,1.16140905]
[1743954584315,0.00011069,82609.0,82608.0,1.1236432]
[1743954586866,0.00011069,82609.0,82608.0,1.2606832]
[1743954589891,0.00011069,82609.0,82608.0,1.29839292]
[1743954590342,0.00011069,82609.0,82608.0,1.29872392]
[1743954590719,0.00027619,82609.0,82608.0,1.29872392]
[1743954598468,7.9e-07,82611.0,82610.0,0.59363623]
[1743954598690,7.9e-07,82611.0,82610.0,1.16384892]
[1743954600515,0.0001655,82641.0,82640.0,0.18562838]
[1743954600840,0.00945391,82641.0,82640.0,1.5050722]
[1743954601063,0.0006205,82641.0,82640.0,1.5050722]
[1743954601821,0.0006205,82641.0,82640.0,1.49053135]
[1743954602243,0.0006205,82641.0,82640.0,1.49960693]
[1743954602766,0.0006205,82641.0,82640.0,1.36260693]
[1743954602971,0.0006205,82641.0,82640.0,1.49960693]
[1743954604041,0.0127205,82641.0,82640.0,1.18109793]
[1743954604237,0.11615391,82641.0,82640.0,1.31809793]
[1743954604432,0.11615391,82641.0,82640.0,1.17697855]
[1743954604642,0.11615391,82641.0,82640.0,0.27313793]
[1743954604864,0.13883458,82641.0,82640.0,0.26901855]
[1743954605065,0.181513,82638.0,82634.0,1.04903938]
[1743954605270,0.27612,82635.0,82634.0,1.04492]
[1743954605468,0.30762924,82635.0,82634.0,1.18192]
[1743954610902,0.30762924,82635.0,82634.0,1.04492]
[1743954617605,0.181555,82619.0,82618.0,0.00411938]
[1743954617885,0.21293787,82619.0,82618.0,0.26402235]
[1743954618352,0.21293787,82619.0,82618.0,0.25990297]
[1743954618583,0.21293787,82619.0,82618.0,0.137]
[1743954623544,0.03138287,82619.0,82618.0,0.44557935]
[1743954623739,0.03138287,82619.0,82618.0,0.26402235]
[1743954623984,0.02268067,82619.0,82618.0,0.26402235]
[1743954624878,0.0313556,82619.0,82618.0,0.26402235]
[1743954631266,0.00867493,82619.0,82618.0,0.26402235]
[1743954631405,0.181552,82621.0,82618.0,0.26402235]
[1743954631605,0.01628687,82620.0,82619.0,0.12290297]
[1743954632166,0.03893928,82620.0,82619.0,0.12290297]
[1743954634776,0.02265241,82620.0,82619.0,0.12290297]
[1743954635505,0.169449,82621.0,82619.0,0.12290297]
[1743954635642,0.0162899,82620.0,82619.0,0.12290297]
[1743954636395,0.03894513,82620.0,82619.0,0.12290297]
[1743954638595,0.03317378,82620.0,82619.0,0.12290297]
[1743954638897,0.03798324,82620.0,82619.0,0.12290297]
[1743954639375,0.02265523,82620.0,82619.0,0.12290297]
[1743954639760,0.03798324,82620.0,82619.0,0.12290297]
[1743954640635,0.05008624,82620.0,82619.0,0.12290297]
[1743954643729,0.181555,82619.0,82618.0,0.000331]
[1743954643996,0.19784269,82619.0,82618.0,0.000331]
[1743954644185,0.22049792,82619.0,82618.0,0.000331]
[1743954644594,0.60829792,82619.0,82618.0,0.000331]
[1743954651158,0.63329792,82619.0,82618.0,0.000331]
[1743954651766,0.60829792,82619.0,82618.0,0.000331]
[1743954651979,0.56049792,82619.0,82618.0,0.000331]
[1743954652540,0.53784269,82619.0,82618.0,0.000331]
[1743954655364,0.02839069,82619.0,82618.0,0.000331]
[1743954655570,0.01628769,82619.0,82618.0,0.12735335]
[1743954655824,0.02839069,82619.0,82618.0,0.12735335]
[1743954656997,0.01628769,82619.0,82618.0,0.12735335]
[1743954657199,0.19784269,82619.0,82618.0,0.12735335]
[1743954657881,0.19784269,82619.0,82618.0,0.1363698]
[1743954661028,0.19784269,82619.0,82618.0,0.13484233]
[1743954663182,0.19784269,82619.0,82618.0,0.13072295]
[1743954663522,0.012103,82618.0,82617.0,0.00411938]
[1743954663725,0.012103,82618.0,82617.0,0.14111938]
[1743954663948,0.02833291,82618.0,82617.0,0.00411938]
[1743954664143,0.02833291,82618.0,82617.0,0.14111938]
[1743954668112,0.181566,82614.0,82613.0,1.04536]
[1743954668313,0.181566,82614.0,82613.0,1.30526297]
[1743954668513,0.19781166,82614.0,82613.0,1.30526297]
[1743954668872,0.19781166,82614.0,82613.0,1.04536]
[1743954669212,0.19781166,82614.0,82613.0,1.18236]
[1743954670035,0.19781166,82614.0,82613.0,0.137]
[1743954672768,0.19781166,82614.0,82613.0,0.137331]
[1743954673370,0.19781166,82614.0,82613.0,0.000331]
[1743954674729,0.01624566,82614.0,82613.0,0.13945735]
[1743954674933,0.181556,82619.0,82617.0,0.00411938]
[1743954675134,0.012103,82618.0,82617.0,0.00411938]
[1743954675328,0.0001655,82620.0,82617.0,0.00411938]
[1743954675585,0.012103,82619.0,82617.0,0.00411938]
[1743954675785,0.181557,82618.0,82617.0,0.00411938]
[1743954675982,0.012103,82619.0,82617.0,0.00411938]
[1743954676164,0.181557,82619.0,82617.0,0.00411938]
[1743954676922,0.012103,82618.0,82617.0,0.00411938]
[1743954682356,0.012103,82618.0,82617.0,0.14107938]
[1743954686361,0.181557,82619.0,82617.0,0.14107938]
[1743954686569,0.01621508,82618.0,82617.0,0.14107938]
[1743954687340,0.01621508,82618.0,82617.0,0.26398235]
[1743954687474,0.0001655,82620.0,82617.0,0.26398235]
[1743954687680,0.01621914,82619.0,82618.0,0.12290297]
[1743954687905,0.01621914,82619.0,82618.0,0.12702235]
[1743954688319,0.01621914,82619.0,82618.0,0.26398235]
[1743954688958,0.01621914,82619.0,82618.0,0.27308954]
[1743954691042,0.02832214,82619.0,82618.0,0.27308954]
[1743954692440,0.01621914,82619.0,82618.0,0.27308954]
[1743954692787,0.18567114,82619.0,82618.0,0.27308954]
[1743954692993,0.01621914,82619.0,82618.0,0.27308954]
[1743954693892,0.28621914,82619.0,82618.0,0.27308954]
[1743954694090,0.01621914,82619.0,82618.0,0.27308954]
[1743954697039,0.01621914,82619.0,82618.0,0.26897016]
[1743954697261,0.01621914,82619.0,82618.0,0.27308954]
[1743954702298,0.01621914,82619.0,82618.0,0.27342054]
[1743954702638,0.01638464,82619.0,82618.0,0.27342054]
[1743954703698,0.01638464,82619.0,82618.0,0.27221797]
[1743954705060,0.02848764,82619.0,82618.0,0.27221797]
[1743954705765,0.01638464,82619.0,82618.0,0.27221797]
[1743954706013,0.01638464,82619.0,82618.0,0.28432097]
[1743954706708,0.0001655,82619.0,82618.0,0.28432097]
[1743954707358,0.01640952,82619.0,82618.0,0.28432097]
[1743954712197,0.01640952,82619.0,82618.0,0.14736097]
[1743954712392,0.01640952,82619.0,82618.0,0.28428097]
[1743954717369,0.01640952,82619.0,82618.0,0.27217797]
[1743954717824,0.02851252,82619.0,82618.0,0.27217797]
[1743954718002,0.02851252,82619.0,82618.0,0.13525797]
[1743954718307,0.02851252,82619.0,82618.0,0.27217797]
[1743954718900,0.01640952,82619.0,82618.0,0.27217797]
[1743954720596,0.02851252,82619.0,82618.0,0.27217797]
[1743954722844,0.01640952,82619.0,82618.0,0.27217797]
[1743954724191,0.02851252,82619.0,82618.0,0.27217797]
[1743954725577,0.02851252,82619.0,82618.0,0.137251]
[1743954726041,0.02851252,82619.0,82618.0,0.000331]
[1743954727739,0.0511866,82619.0,82618.0,0.000331]
[1743954728798,0.02851252,82619.0,82618.0,0.000331]
[1743954732302,0.07471252,82619.0,82618.0,0.000331]
[1743954733178,0.09737315,82619.0,82618.0,0.000331]
[1743954733662,0.12237315,82619.0,82618.0,0.000331]
[1743954735398,0.09971252,82619.0,82618.0,0.000331]
[1743954736113,0.12235552,82619.0,82618.0,0.000331]
[1743954736265,0.46235552,82619.0,82618.0,0.000331]
[1743954739087,0.83643679,82619.0,82618.0,0.000331]
[1743954740281,0.72807996,82619.0,82618.0,0.000331]
[1743954741326,0.025,82609.0,82589.0,1.0456512]
[1743954741509,0.52161,82594.0,82589.0,1.0456512]
[1743954741713,0.52161,82594.0,82593.0,0.00044138]
[1743954741940,0.56026606,82594.0,82593.0,0.00044138]
[1743954742625,0.58526606,82594.0,82593.0,0.00044138]
[1743954744901,0.85526606,82594.0,82593.0,0.00044138]
[1743954745102,0.58526606,82594.0,82593.0,0.00044138]
[1743954746631,0.71266606,82594.0,82593.0,0.00044138]
[1743954746832,0.58526606,82594.0,82593.0,0.00044138]
[1743954749748,0.96823567,82594.0,82593.0,0.00044138]
[1743954750467,0.8509905,82594.0,82593.0,0.00044138]
[1743954751363,0.8509905,82594.0,82593.0,0.00048138]
[1743954753238,0.70816903,82594.0,82593.0,0.00048138]
[1743954754458,0.68552603,82594.0,82593.0,0.00048138]
[1743954755130,0.53762306,82594.0,82593.0,0.00048138]
[1743954760522,0.01601306,82594.0,82593.0,0.34410873]
[1743954760726,0.01601306,82594.0,82593.0,0.22220373]
[1743954760952,0.012107,82596.0,82593.0,0.22220373]
[1743954760953,0.18161,82595.0,82593.0,0.22220373]
[1743954761153,0.181608,82596.0,82594.0,0.12290297]
[1743954761527,0.01591428,82595.0,82594.0,0.12290297]
[1743954768881,0.28591428,82595.0,82594.0,0.12290297]
[1743954769167,0.01591428,82595.0,82594.0,0.12290297]
[1743954770191,0.02802128,82595.0,82594.0,0.25978297]
[1743954771422,0.02802128,82595.0,82594.0,0.12290297]
[1743954771602,0.02802128,82595.0,82594.0,0.25978297]
[1743954776886,0.01591428,82595.0,82594.0,0.25978297]
[1743954777007,0.01591428,82595.0,82594.0,0.30498297]
[1743954777243,0.012106,82599.0,82594.0,0.47860535]
[1743954777437,0.01598136,82598.0,82594.0,0.30910235]
[1743954778039,0.19758436,82598.0,82594.0,0.30910235]
[1743954779277,0.01598136,82598.0,82597.0,0.00411938]
[1743954779447,0.181573,82611.0,82607.0,0.00411938]
[1743954779639,0.01614482,82608.0,82607.0,0.09571938]
[1743954780397,0.02824982,82608.0,82607.0,0.09571938]
[1743954780644,0.02824982,82608.0,82597.0,0.12290297]
[1743954780645,0.012106,82602.0,82601.0,0.00411938]
[1743954780846,0.181599,82599.0,82598.0,0.00411938]
[1743954781033,0.181599,82599.0,82598.0,0.14099938]
[1743954781321,0.19765156,82599.0,82598.0,0.14099938]
[1743954781543,0.47765156,82599.0,82598.0,0.14099938]
[1743954781755,0.19765156,82599.0,82598.0,0.14099938]
[1743954781961,0.181608,82595.0,82594.0,0.046731]
[1743954782165,0.181608,82595.0,82594.0,0.000331]
[1743954782316,0.1976408,82595.0,82594.0,0.137211]
[1743954782884,0.1976408,82595.0,82594.0,0.000331]
[1743954786981,0.5376408,82595.0,82594.0,0.000331]
[1743954787632,0.377107,82592.0,82591.0,3.8e-07]
[1743954787832,0.51455082,82592.0,82591.0,3.8e-07]
[1743954788037,0.37798862,82590.0,82589.0,5.8e-07]
[1743954788239,0.51543244,82590.0,82589.0,5.8e-07]
[1743954788453,0.51543244,82590.0,82561.0,1.04964]
[1743954788454,0.521681,82562.0,82561.0,0.004]
[1743954789021,0.53749719,82562.0,82561.0,0.004]
[1743954790106,0.53749719,82562.0,82561.0,0.00413655]
[1743954790735,0.67249722,82562.0,82561.0,5.5e-07]
[1743954790968,0.69749722,82562.0,82561.0,5.5e-07]
[1743954792019,0.71291869,82562.0,82561.0,5.5e-07]
[1743954794055,0.56211447,82556.0,82555.0,1.01408375]
[1743954794236,0.70051108,82556.0,82555.0,1.01408375]
[1743954799196,0.74981108,82556.0,82555.0,1.01408375]
[1743954799393,0.74981108,82556.0,82555.0,0.18330575]
[1743954799592,0.87270876,82556.0,82555.0,0.18330575]
[1743954800820,0.74981108,82556.0,82555.0,0.18330575]
[1743954801411,0.70051108,82556.0,82555.0,0.18330575]
[1743954801587,0.82791108,82556.0,82555.0,0.18330575]
[1743954803071,0.82703046,82556.0,82555.0,0.18330575]
[1743954803306,0.68508961,82556.0,82555.0,0.18330575]
[1743954803687,0.80798729,82556.0,82555.0,0.18330575]
[1743954804018,0.68508961,82556.0,82555.0,0.18330575]
[1743954807012,0.68508961,82556.0,82555.0,0.18363695]
[1743954807420,0.68525521,82556.0,82555.0,0.18363695]
[1743954808031,0.70067668,82556.0,82555.0,0.18363695]
[1743954811705,0.82807668,82556.0,82555.0,0.18363695]
[1743954812933,0.53735224,82556.0,82555.0,0.18363695]
[1743954813663,0.56235224,82556.0,82555.0,0.18363695]
[1743954814458,0.53735224,82556.0,82555.0,0.18363695]
[1743954826804,0.53735224,82556.0,82555.0,0.22883695]
[1743954833364,0.35565924,82556.0,82555.0,0.22883695]
[1743954833765,0.01565924,82556.0,82555.0,0.23295633]
[1743954833897,0.01565924,82556.0,82555.0,0.28035633]
[1743954834103,0.0001656,82556.0,82555.0,0.28035633]
[1743954834899,0.0001656,82556.0,82555.0,0.29246933]
[1743954835367,0.0001656,82556.0,82555.0,0.28035633]
[1743954837993,0.01432919,82556.0,82555.0,0.28035633]
[1743954838130,0.0001656,82556.0,82555.0,0.41723633]
[1743954838338,0.01435481,82556.0,82555.0,0.41723633]
[1743954838671,0.0001656,82556.0,82555.0,0.28035633]
[1743954838976,0.0001656,82556.0,82555.0,0.41723633]
[1743954839175,0.01435481,82556.0,82555.0,0.41723633]
[1743954839473,0.0001656,82556.0,82555.0,0.41311695]
[1743954839616,0.01435481,82556.0,82555.0,0.41311695]
[1743954839819,0.0001656,82556.0,82555.0,0.41311695]
[1743954840037,0.01439324,82556.0,82555.0,0.41311695]
[1743954840294,0.01438892,82556.0,82555.0,0.41311695]
[1743954840890,0.0001656,82556.0,82555.0,0.41311695]
[1743954841177,0.01438892,82556.0,82555.0,0.41723633]
[1743954841391,0.0001656,82556.0,82555.0,0.41723633]
[1743954841591,0.01438892,82556.0,82555.0,0.41723633]
[1743954841794,0.0001656,82556.0,82555.0,0.41723633]
[1743954842052,0.01438892,82556.0,82555.0,0.41723633]
[1743954842193,0.0001656,82556.0,82555.0,0.41723633]
[1743954842393,0.01438892,82556.0,82555.0,0.41723633]
[1743954842646,0.0001656,82556.0,82555.0,0.41723633]
[1743954842830,0.01438892,82556.0,82555.0,0.41723633]
[1743954844851,0.28438892,82556.0,82555.0,0.41723633]
[1743954845017,0.01438892,82556.0,82555.0,0.41723633]
[1743954847174,0.01438892,82556.0,82555.0,0.7097223]
[1743954847378,0.01438892,82556.0,82555.0,0.7218353]
[1743954847575,0.0001656,82556.0,82555.0,0.7218353]
[1743954852313,0.0001656,82556.0,82555.0,0.5401393]
[1743954852800,0.0001656,82556.0,82555.0,0.5522123]
[1743954854139,0.169519,82587.0,82580.0,0.0472]
[1743954854340,0.18372565,82586.0,82580.0,0.0472]
[1743954854498,0.34,82585.0,82580.0,0.0472]
[1743954855077,0.01420465,82584.0,82580.0,0.0472]
[1743954856016,0.01420465,82584.0,82582.0,0.00411938]
[1743954856195,0.01420465,82584.0,82582.0,0.17364538]
[1743954856371,0.00013642,82587.0,82582.0,0.18575438]
[1743954856578,0.01433471,82586.0,82582.0,0.18575438]
[1743954856961,0.01433471,82586.0,82582.0,0.00411938]
[1743954859658,0.01433471,82586.0,82582.0,0.17364638]
[1743954859866,0.01433471,82586.0,82584.0,0.17364138]
[1743954860063,0.01433471,82586.0,82584.0,0.00411938]
[1743954860276,0.01433471,82586.0,82585.0,0.012108]
[1743954860480,0.00030202,82587.0,82586.0,0.012108]
[1743954860927,0.00030202,82587.0,82586.0,0.181628]
[1743954861699,0.00030202,82587.0,82586.0,0.18574738]
[1743954862777,0.01241002,82587.0,82586.0,0.1368]
[1743954862954,0.02692815,82587.0,82586.0,0.14091938]
[1743954863158,0.01482015,82587.0,82586.0,0.00411938]
[1743954863462,0.01482015,82587.0,82586.0,0.14091938]
[1743954864560,0.01482015,82587.0,82586.0,0.31043938]
[1743954864739,0.00030202,82587.0,82586.0,0.31043938]
[1743954865162,0.00030202,82587.0,82586.0,0.14091938]
[1743954866278,0.01482088,82587.0,82586.0,0.14091938]
[1743954866507,0.00030202,82587.0,82586.0,0.14091938]
[1743954866709,0.01482088,82587.0,82586.0,0.14091938]
[1743954866916,0.00030202,82587.0,82586.0,0.14091938]
[1743954867119,0.01482088,82587.0,82586.0,0.14091938]
[1743954867298,0.18193002,82587.0,82586.0,0.00411938]
[1743954867512,0.19644888,82587.0,82586.0,0.14091938]
[1743954869313,0.01482088,82587.0,82586.0,0.14091938]
[1743954871134,0.18433888,82587.0,82586.0,0.1368]
[1743954871340,0.18433888,82587.0,82586.0,0.14091938]
[1743954871555,0.01482088,82587.0,82586.0,0.14091938]
[1743954875712,0.01482088,82587.0,82586.0,0.1368]
[1743954875857,0.01482088,82587.0,82586.0,0.14091938]
[1743954876052,0.01482088,82587.0,82586.0,0.1368]
[1743954876352,0.02692888,82587.0,82586.0,0.1368]
[1743954877527,0.02692888,82587.0,82586.0,0.13684]
[1743954884321,0.02692888,82587.0,82586.0,4e-05]
[1743954889577,0.36692888,82587.0,82586.0,4e-05]
[1743954890568,0.41312888,82587.0,82586.0,4e-05]
[1743954901610,0.36692888,82587.0,82586.0,4e-05]
[1743954907358,0.63692888,82587.0,82586.0,4e-05]
[1743954907497,0.36692888,82587.0,82586.0,4e-05]
[1743954917325,0.02692888,82587.0,82586.0,4e-05]
[1743954920383,0.36692888,82587.0,82586.0,4e-05]
[1743954920801,0.02692888,82587.0,82586.0,4e-05]
[1743954922862,0.36692888,82587.0,82586.0,4e-05]
[1743954926878,0.584748,82587.0,82586.0,4e-05]
[1743954927053,0.57565332,82587.0,82586.0,4e-05]
[1743954930053,0.57665332,82587.0,82586.0,4e-05]
[1743954931468,0.57765332,82587.0,82586.0,4e-05]
[1743954933280,0.80765332,82587.0,82586.0,4e-05]
[1743954933579,0.57765332,82587.0,82586.0,4e-05]
[1743954938422,0.181691,82557.0,82556.0,0.0003312]
[1743954938624,0.52147014,82557.0,82556.0,0.0003312]
[1743954938799,0.53704192,82557.0,82556.0,0.0003312]
[1743954940095,0.53704192,82557.0,82556.0,0.0483312]
[1743954941312,0.53704192,82557.0,82556.0,0.0493312]
[1743954941675,0.53704192,82557.0,82556.0,0.0483312]
[1743954941848,0.54891472,82557.0,82556.0,0.0483312]
[1743954942008,0.54891472,82557.0,82556.0,0.0493312]
[1743954950040,0.01557178,82557.0,82556.0,0.0959312]
[1743954950243,0.012112,82558.0,82556.0,0.0959312]
[1743954950468,0.012112,82558.0,82557.0,0.0477]
[1743954950469,0.521691,82558.0,82557.0,0.0477]
[1743954952693,0.521691,82558.0,82557.0,0.0487]
[1743954953440,0.521691,82558.0,82557.0,0.04874]
[1743954953690,0.521691,82558.0,82557.0,0.04974]
[1743954956675,0.53715898,82558.0,82557.0,0.04974]
[1743954959277,0.53732458,82558.0,82557.0,0.04974]
[1743954962508,0.53732458,82558.0,82557.0,0.18887435]
[1743954962509,0.01563358,82558.0,82557.0,0.18887435]
[1743954962787,0.0001656,82558.0,82557.0,0.35845335]
[1743954962987,0.0001656,82558.0,82557.0,0.40535335]
[1743954963344,0.0001656,82558.0,82557.0,0.40435335]
[1743954963729,0.0001656,82558.0,82557.0,0.40535335]
[1743954964170,0.0001656,82558.0,82557.0,0.40435335]
[1743954964394,0.0001656,82558.0,82557.0,0.40335335]
[1743954964593,0.0001656,82558.0,82557.0,0.40435335]
[1743954967303,0.0001656,82558.0,82557.0,0.54103335]
[1743954967683,0.0001656,82558.0,82557.0,0.40435335]
[1743954967859,0.0001656,82558.0,82557.0,0.54103335]
[1743954970433,0.0301656,82558.0,82557.0,0.54103335]
[1743954970747,0.0001656,82558.0,82557.0,0.54103335]
[1743954973214,0.0001656,82558.0,82557.0,0.54003335]
[1743954973414,0.0001656,82558.0,82557.0,0.54036455]
[1743954974686,0.0001656,82558.0,82557.0,1.58632455]
[1743954975382,0.0001656,82558.0,82557.0,1.58636455]
[1743954990614,0.0001656,82558.0,82557.0,1.44968455]
[1743954991155,0.0001656,82558.0,82557.0,1.58220517]
[1743954991346,0.0001656,82558.0,82557.0,1.58632455]
[1743954991673,0.0001656,82558.0,82557.0,1.44968455]
[1743954991893,0.0001656,82558.0,82557.0,1.58632455]
[1743954992730,0.0001656,82558.0,82557.0,1.35508455]
[1743954992877,0.0001656,82558.0,82557.0,1.49172455]
[1743954993073,0.0001656,82558.0,82557.0,1.16927417]
[1743954993330,0.0001656,82558.0,82557.0,1.30591417]
[1743954993543,0.01580285,82558.0,82557.0,1.30591417]
[1743954993975,0.01580285,82558.0,82557.0,1.16927417]
[1743954994104,0.01580285,82558.0,82557.0,1.30591417]
[1743954994611,0.01580285,82558.0,82557.0,1.1830112]
[1743954994612,0.19749185,82558.0,82557.0,1.1830112]
[1743954995658,0.19749185,82558.0,82557.0,1.1829712]
[1743954995856,0.20976045,82558.0,82557.0,1.1829712]
[1743954996272,0.25956045,82558.0,82557.0,1.0463712]
[1743954997255,0.25956045,82558.0,82557.0,0.0004112]
[1743954998058,0.20976045,82558.0,82557.0,0.0004112]
[1743954998754,0.01580285,82558.0,82557.0,0.0004112]
[1743954998962,0.01580285,82558.0,82557.0,0.0125232]
[1743954999885,0.01580285,82558.0,82557.0,0.0004112]
[1743955000056,0.07381485,82558.0,82557.0,0.0004112]
[1743955002650,0.41381485,82558.0,82557.0,0.0004112]
[1743955007228,0.69381485,82558.0,82557.0,0.0004112]
[1743955007359,0.41381485,82558.0,82557.0,0.0004112]
[1743955015625,0.53759844,82558.0,82557.0,0.0004112]
[1743955015851,0.53759844,82558.0,82536.0,1.0462108]
[1743955015852,0.012115,82542.0,82536.0,0.0003308]
[1743955016052,0.614125,82542.0,82536.0,0.0003308]
[1743955016208,0.62938734,82542.0,82541.0,0.0003769]
[1743955018558,0.28938734,82542.0,82541.0,0.0003769]
[1743955019936,0.87938734,82542.0,82541.0,0.0003769]
[1743955020136,0.75229031,82542.0,82541.0,0.0003769]
[1743955020948,0.53698734,82542.0,82541.0,0.0003769]
[1743955021312,0.36737734,82542.0,82541.0,0.0003769]
[1743955021525,0.53698734,82542.0,82541.0,0.0003769]
[1743955021723,0.35526234,82542.0,82541.0,0.0003769]
[1743955023882,0.01526234,82542.0,82541.0,0.0003769]
[1743955024487,0.509608,82544.0,82541.0,0.0003769]
[1743955024488,0.012114,82543.0,82541.0,0.0003769]
[1743955024739,0.01530342,82542.0,82541.0,0.0003769]
[1743955027940,0.02741842,82542.0,82541.0,0.0003769]
[1743955033183,0.01530342,82542.0,82541.0,0.0003769]
[1743955033384,0.352114,82547.0,82541.0,0.0124919]
[1743955033531,0.02739783,82546.0,82542.0,0.0476]
[1743955033735,0.01528383,82546.0,82542.0,0.0476]
[1743955033951,0.012113,82551.0,82545.0,0.181718]
[1743955034193,0.0153184,82550.0,82547.0,0.169599]
[1743955034395,0.169592,82552.0,82547.0,0.169599]
[1743955034711,0.01532247,82551.0,82547.0,0.169599]
[1743955034886,0.01532247,82551.0,82546.0,0.181716]
[1743955035066,0.181707,82550.0,82544.0,0.00411938]
[1743955035264,0.169598,82549.0,82544.0,0.00411938]
[1743955035462,0.181716,82546.0,82545.0,0.13664]
[1743955035868,0.012114,82548.0,82545.0,0.13664]
[1743955036146,0.01537225,82546.0,82545.0,0.13664]
[1743955036357,0.181703,82552.0,82546.0,0.012114]
[1743955036503,0.3403312,82555.0,82551.0,0.012113]
[1743955036733,0.5099162,82555.0,82549.0,0.012114]
[1743955036936,0.5220292,82555.0,82549.0,0.012114]
[1743955037144,0.169593,82551.0,82545.0,0.15287338]
[1743955037310,0.169593,82551.0,82546.0,0.169602]